bitfinex-derivatives/quotes_SOLF0:USTF0_20250101
["timestamp","ask_amount","ask_price","bid_price","bid_amount"]
[1735738006087,2.6386,189.86,189.83,2.639]
[1735738006386,10.33508314,189.86,189.83,2.639]
[1735738007589,10.33508314,189.86,189.83,2.58474691]
[1735738008882,10.33508314,189.86,189.8,7.69648314]
[1735738009086,10.33508314,189.86,189.82,2.6391]
[1735738009988,2.6389,189.85,189.81,2.6393]
[1735738011786,2.6389,189.85,189.8,10.33588314]
[1735738013681,2.6389,189.85,189.8,7.69648314]
[1735738013880,2.6389,189.85,189.81,2.6393]
[1735738014289,10.33508314,189.86,189.81,2.6393]
[1735738014791,10.33508314,189.86,189.82,2.6391]
[1735738015878,7.69648314,189.86,189.82,2.6391]
[1735738017484,10.33468314,189.9,189.84,7.69648314]
[1735738017686,18.83888311,189.9,189.84,7.69648314]
[1735738017889,10.33468314,189.9,189.84,7.69648314]
[1735738018590,10.33468314,189.9,189.86,2.6386]
[1735738018784,7.69648314,189.9,189.84,7.69648314]
[1735738018982,7.69648314,189.9,189.86,2.6385]
[1735738020693,10.33458314,189.9,189.86,2.6385]
[1735738027695,2.6381,189.9,189.86,2.6385]
[1735738029797,7.69648314,189.89,189.84,7.69648314]
[1735738029994,7.69648314,189.87,189.76,4.671]
[1735738030194,7.69648314,189.87,189.8,7.69648314]
[1735738031395,2.6387,189.86,189.81,2.6392]
[1735738031802,2.6387,189.86,189.8,7.69648314]
[1735738031994,7.69648314,189.87,189.8,7.69648314]
[1735738032194,10.33498314,189.87,189.82,2.6391]
[1735738032394,2.6385,189.87,189.82,2.6391]
[1735738033295,2.6386,189.86,189.82,2.6391]
[1735738033801,7.69648314,189.84,189.79,2.6395]
[1735738034202,7.69648314,189.84,189.78,10.69648314]
[1735738035404,7.69648314,189.84,189.8,2.6394]
[1735738035800,7.69648314,189.82,189.76,1.5461]
[1735738036107,7.69648314,189.8,189.75,2.64]
[1735738036407,7.69648314,189.8,189.73,10.69648314]
[1735738036600,7.69648314,189.8,189.76,2.64]
[1735738036899,7.69648314,189.8,189.73,10.69648314]
[1735738037103,7.69648314,189.8,189.77,2.6398]
[1735738037300,10.33568314,189.82,189.77,2.6398]
[1735738037499,7.69648314,189.82,189.77,2.6398]
[1735738038096,7.69648314,189.8,189.75,2.64]
[1735738038605,7.69648314,189.8,189.76,2.6399]
[1735738043704,7.69648314,189.8,189.77,2.6397]
[1735738043999,7.69648314,189.82,189.77,2.6397]
[1735738044403,2.639,189.83,189.76,7.69648314]
[1735738044604,7.69648314,189.83,189.76,7.69648314]
[1735738046806,7.69648314,189.83,189.79,2.6396]
[1735738050909,7.69648314,189.83,189.76,7.69648314]
[1735738051208,4.58,189.88,189.8,7.69648314]
[1735738051406,12.27648314,189.88,189.8,7.69648314]
[1735738051600,12.27648314,189.88,189.83,2.6389]
[1735738052405,14.91478314,189.88,189.83,2.6389]
[1735738052802,14.91478314,189.88,189.7,2.9793]
[1735738052803,7.69648314,189.84,189.7,2.9793]
[1735738053110,7.69648314,189.78,189.73,2.6404]
[1735738053501,7.69648314,189.78,189.74,2.6402]
[1735738053808,7.69648314,189.78,189.71,7.69648314]
[1735738054111,7.69648314,189.83,189.79,2.6395]
[1735738054312,2.6388,189.85,189.79,2.6395]
[1735738054609,7.69648314,189.84,189.79,2.6395]
[1735738056013,2.6386,189.87,189.82,2.6391]
[1735738056210,10.33508314,189.87,189.82,2.6391]
[1735738058915,1.5353,189.88,189.82,7.69648314]
[1735738059215,1.555,189.89,189.84,7.69648314]
[1735738059604,7.69648314,189.9,189.86,2.6386]
[1735738059811,7.69648314,189.92,189.84,7.69648314]
[1735738060615,49.50813874,189.93,189.84,7.69648314]
[1735738060812,57.20462188,189.93,189.86,7.69648314]
[1735738061113,7.69648314,189.89,189.82,7.69648314]
[1735738061311,7.69648314,189.87,189.8,10.69648314]
[1735738062315,3.0,189.9,189.8,10.69648314]
[1735738062516,7.69648314,189.9,189.84,7.69648314]
[1735738063309,7.69648314,189.9,189.85,2.6387]
[1735738063618,7.69648314,189.9,189.82,7.69648314]
[1735738063815,10.33468314,189.9,189.84,2.6389]
[1735738065315,2.6379,189.92,189.86,2.6386]
[1735738065513,7.69648314,189.92,189.84,7.69648314]
[1735738065709,7.69648314,189.92,189.86,7.69648314]
[1735738066121,7.69648314,189.9,189.85,3.0]
[1735738067220,7.69648314,189.9,189.85,5.6387]
[1735738067418,7.69648314,189.88,189.82,7.69648314]
[1735738067623,7.69648314,189.88,189.81,3.0]
[1735738067819,49.50813874,189.93,189.81,3.0]
[1735738067820,10.33508314,189.86,189.81,3.0]
[1735738069227,10.33508314,189.86,189.79,7.69648314]
[1735738069526,10.33508314,189.86,189.8,2.6394]
[1735738070122,7.69648314,189.86,189.81,2.6393]
[1735738070927,3.0,189.89,189.84,2.6389]
[1735738071128,7.69648314,189.89,189.84,2.6389]
[1735738072730,7.69648314,189.91,189.83,7.69648314]
[1735738072923,7.69648314,189.91,189.85,7.69648314]
[1735738073824,7.69648314,189.91,189.87,2.6384]
[1735738074130,7.69648314,189.91,189.85,7.69648314]
[1735738074627,10.33448314,189.91,189.86,2.6386]
[1735738074819,7.69648314,189.89,189.84,3.0]
[1735738075325,1.5308,189.94,189.87,7.69648314]
[1735738075825,1.5308,189.94,189.88,7.69648314]
[1735738076520,7.69648314,189.93,189.89,2.6381]
[1735738077128,7.69648314,189.91,189.86,7.69648314]
[1735738077322,3.0,189.93,189.77,1.5012]
[1735738077530,7.69648314,189.87,189.82,2.6391]
[1735738077724,7.69648314,189.87,189.8,7.69648314]
[1735738079221,2.6387,189.86,189.8,10.33578314]
[1735738079829,2.6387,189.86,189.81,2.6392]
[1735738080232,7.69648314,189.87,189.8,7.69648314]
[1735738080531,7.69648314,189.87,189.83,2.639]
[1735738081337,7.69648314,189.87,189.81,2.6392]
[1735738081830,2.6387,189.86,189.81,2.6392]
[1735738082428,7.69648314,189.87,189.8,7.69648314]
[1735738083032,7.69648314,189.89,189.84,2.6389]
[1735738083533,7.69648314,189.89,189.85,2.6387]
[1735738083733,3.0,189.9,189.85,2.6387]
[1735738083933,7.69648314,189.91,189.85,2.6387]
[1735738084136,10.33438314,189.91,189.85,2.6387]
[1735738084631,7.69648314,189.91,189.88,2.6383]
[1735738084833,2.6378,189.92,189.86,7.69648314]
[1735738085633,2.6378,189.92,189.87,2.6384]
[1735738086731,7.69648314,189.93,189.89,2.6382]
[1735738089334,7.69648314,189.93,189.9,2.638]
[1735738092036,3.1548,189.95,189.9,2.638]
[1735738092229,10.33358314,189.97,189.91,2.6378]
[1735738092434,10.33358314,189.97,189.9,7.69648314]
[1735738092942,60.02259451,189.99,189.9,7.69648314]
[1735738093141,70.35597765,189.99,189.92,7.69648314]
[1735738093537,70.35597765,189.99,189.94,2.6374]
[1735738093745,9.93285327,189.99,189.92,7.69648314]
[1735738094042,9.93285327,189.99,189.95,2.6373]
[1735738094245,9.93285327,189.99,189.92,7.69648314]
[1735738095047,7.69648314,189.99,189.94,7.69648314]
[1735738095946,7.69648314,190.01,189.94,7.69648314]
[1735738097036,9.30958314,190.04,189.96,7.69648314]
[1735738097235,9.30958314,190.04,189.98,7.69648314]
[1735738097741,9.30958314,190.04,189.96,7.69648314]
[1735738097945,7.69648314,190.02,189.96,7.69648314]
[1735738098740,7.69648314,190.02,189.95,3.0]
[1735738099036,2.6367,190.0,189.95,5.6373]
[1735738099433,7.69648314,189.98,189.85,4.8428]
[1735738099636,2.6371,189.97,189.92,7.69648314]
[1735738100440,2.6371,189.97,189.92,10.33418314]
[1735738101238,7.69648314,189.94,189.85,4.8428]
[1735738101445,7.69648314,189.92,189.86,7.69648314]
[1735738102241,12.01422787,189.94,189.85,7.8428]
[1735738102446,2.6378,189.92,189.87,2.6385]
[1735738103341,2.6377,189.93,189.87,2.6385]
[1735738103545,2.6377,189.93,189.85,7.8428]
[1735738103746,2.6377,189.93,189.88,2.6383]
[1735738104146,2.6377,189.93,189.87,2.6385]
[1735738108148,2.6377,189.93,189.85,7.8428]
[1735738108348,2.6377,189.93,189.88,2.6383]
[1735738109449,15.14652787,189.97,189.85,19.85702787]
[1735738109650,2.6375,189.94,189.85,19.85702787]
[1735738110646,2.6375,189.94,189.89,2.6381]
[1735738110850,2.6375,189.94,189.85,19.85702787]
[1735738111048,12.01422787,190.0,189.88,12.01422787]
[1735738111247,15.01422787,190.0,189.91,2.6378]
[1735738111448,57.78622438,190.01,189.91,3.0]
[1735738111645,60.42282438,190.01,189.91,15.01422787]
[1735738112247,2.6366,190.01,189.91,15.01422787]
[1735738112446,2.6366,190.01,189.97,2.6371]
[1735738112646,5.6638,190.02,189.97,2.6371]
[1735738112851,5.6638,190.02,189.91,15.01422787]
[1735738113050,2.6367,190.0,189.94,2.6374]
[1735738113245,3.0274,190.02,189.91,15.01422787]
[1735738114556,3.0274,190.02,189.94,2.6374]
[1735738115153,2.637,189.98,189.91,15.01422787]
[1735738115357,2.637,189.98,189.93,2.6376]
[1735738115854,12.01422787,190.0,189.91,3.0]
[1735738116055,12.01422787,190.0,189.88,15.01422787]
[1735738116255,2.6374,189.95,189.9,2.638]
[1735738116557,3.0,189.98,189.9,2.638]
[1735738117557,12.01422787,189.97,189.89,2.6382]
[1735738118457,2.6377,189.93,189.89,2.6382]
[1735738118653,12.01422787,189.97,189.88,2.6383]
[1735738118853,12.01422787,189.94,189.87,3.0]
[1735738119055,12.01422787,189.94,189.85,1.5988]
[1735738119349,12.01422787,189.94,189.82,1.76851627]
[1735738119350,3.0,189.93,189.84,2.6388]
[1735738119956,3.0,189.93,189.86,2.6386]
[1735738120560,3.0,189.93,189.84,2.6387]
[1735738120561,2.6381,189.9,189.84,2.6387]
[1735738120958,12.01422787,189.91,189.82,1.76851627]
[1735738121259,12.01422787,189.91,189.86,2.6386]
[1735738122555,2.6381,189.9,189.86,2.6386]
[1735738126259,10.32868259,189.9,189.86,2.6386]
[1735738127361,7.69058259,189.9,189.85,7.69058259]
[1735738127661,2.6379,189.91,189.85,7.69058259]
[1735738128466,2.6379,189.91,189.87,2.6384]
[1735738129862,7.69058259,189.92,189.87,2.6385]
[1735738130362,10.32838259,189.92,189.87,2.6385]
[1735738130857,10.32838259,189.92,189.85,7.69058259]
[1735738131059,10.32838259,189.92,189.88,2.6383]
[1735738136563,2.6381,189.9,189.85,10.32918259]
[1735738136764,10.32868259,189.9,189.85,7.69058259]
[1735738137456,10.32868259,189.9,189.86,2.6385]
[1735738139870,2.6382,189.89,189.84,2.6388]
[1735738140564,2.6386,189.86,189.82,1.76851627]
[1735738140765,7.69058259,189.86,189.82,1.76851627]
[1735738142168,10.32918259,189.86,189.82,1.76851627]
[1735738143867,7.69058259,189.86,189.82,1.76851627]
[1735738144073,7.69058259,189.86,189.82,4.40761627]
[1735738144767,10.32908259,189.88,189.83,2.639]
[1735738145470,10.32908259,189.88,189.84,2.6389]
[1735738145666,10.32868259,189.9,189.84,7.69058259]
[1735738145871,7.69058259,189.9,189.84,7.69058259]
[1735738147564,7.69058259,189.9,189.86,2.6385]
[1735738149778,7.69058259,189.9,189.84,7.69058259]
[1735738149981,7.69058259,189.9,189.87,2.6384]
[1735738150173,7.69058259,189.9,189.84,7.69058259]
[1735738150374,13.32838259,189.92,189.84,7.69058259]
[1735738150579,13.32838259,189.92,189.88,2.6382]
[1735738150775,13.32838259,189.92,189.86,7.69058259]
[1735738150776,10.69058259,189.92,189.86,7.69058259]
[1735738150976,7.69058259,189.92,189.86,7.69058259]
[1735738151575,10.32838259,189.92,189.88,2.6382]
[1735738152381,7.69058259,189.92,189.89,2.6382]
[1735738154684,2.6375,189.94,189.9,2.6379]
[1735738155080,4.6449,189.95,189.92,2.6376]
[1735738155380,9.31598259,189.96,189.9,7.69058259]
[1735738155679,5.6371,189.98,189.93,2.6375]
[1735738155878,5.6371,189.98,189.92,7.69058259]
[1735738156084,3.0,189.98,189.92,7.69058259]
[1735738156283,13.32758259,189.98,189.93,2.6376]
[1735738157377,2.6371,189.97,189.93,2.6376]
[1735738159182,2.6374,189.95,189.91,2.6379]
[1735738159383,7.69058259,189.94,189.87,6.0256]
[1735738159586,7.69058259,189.94,189.88,7.69058259]
[1735738159884,10.32808259,189.94,189.9,2.638]
[1735738160581,7.69058259,189.94,189.88,7.69058259]
[1735738160881,2.6374,189.95,189.91,2.6379]
[1735738163083,2.6371,189.97,189.93,2.6375]
[1735738163977,2.6371,189.97,189.94,2.6375]
[1735738164183,2.637,189.98,189.94,2.6375]
[1735738164880,54.11290807,190.0,189.92,7.69058259]
[1735738165084,2.6369,189.99,189.92,7.69058259]
[1735738165887,2.6369,189.99,189.95,2.6373]
[1735738167189,2.637,189.98,189.94,2.6375]
[1735738170189,10.32758259,189.98,189.94,2.6375]
[1735738170886,7.69058259,189.98,189.92,7.69058259]
[1735738171094,7.69058259,190.0,189.95,2.6373]
[1735738172499,10.32728259,190.0,189.95,2.6373]
[1735738173999,10.32728259,190.0,189.96,2.6372]
[1735738174397,7.69058259,190.0,189.93,7.69058259]
[1735738174696,11.81078259,190.02,189.95,7.69058259]
[1735738174893,10.32708259,190.02,189.95,7.69058259]
[1735738175304,10.32708259,190.02,189.97,2.6371]
[1735738176092,2.6366,190.01,189.97,2.6371]
[1735738176496,7.69058259,190.0,189.95,2.6373]
[1735738176697,2.6369,189.99,189.95,2.6373]
[1735738177204,2.6376,189.94,189.9,2.638]
[1735738177503,7.69058259,189.94,189.87,7.69058259]
[1735738178298,10.32818259,189.94,189.88,2.6383]
[1735738178599,7.69058259,189.94,189.88,2.6383]
[1735738179504,7.69058259,189.92,189.87,10.32898259]
[1735738180402,10.32838259,189.92,189.87,10.32898259]
[1735738180603,10.32838259,189.92,189.88,2.6383]
[1735738181803,7.69058259,189.9,189.86,2.6385]
[1735738182299,7.69058259,189.9,189.85,7.69058259]
[1735738182300,10.32868259,189.9,189.85,2.6387]
[1735738182501,7.69058259,189.88,189.81,3.064]
[1735738182696,7.69058259,189.88,189.81,7.69058259]
[1735738182903,2.6387,189.86,189.79,3.0]
[1735738183101,2.6387,189.86,189.8,7.69058259]
[1735738183300,7.69058259,189.88,189.8,7.69058259]
[1735738183607,2.6385,189.87,189.82,2.6391]
[1735738184104,2.6384,189.88,189.83,2.639]
[1735738184304,10.32898259,189.88,189.83,2.639]
[1735738184705,7.69058259,189.88,189.82,7.69058259]
[1735738185102,7.69058259,189.88,189.84,2.6389]
[1735738185497,10.32898259,189.88,189.82,7.69058259]
[1735738185697,10.32898259,189.88,189.83,2.639]
[1735738186204,2.6386,189.87,189.82,7.69058259]
[1735738187406,2.6386,189.87,189.82,10.32968259]
[1735738188313,2.6386,189.87,189.82,7.69058259]
[1735738188505,7.69058259,189.88,189.84,2.6389]
[1735738189509,10.32888259,189.88,189.84,2.6389]
[1735738190508,7.69058259,189.88,189.75,4.6735]
[1735738190712,2.6385,189.87,189.82,2.639]
[1735738190908,7.69058259,189.88,189.82,2.639]
[1735738191211,7.69058259,189.88,189.8,7.69058259]
[1735738192010,7.69058259,189.86,189.76,3.0]
[1735738192215,7.69058259,189.86,189.8,7.69058259]
[1735738192415,7.69058259,189.86,189.81,2.6392]
[1735738192416,10.32918259,189.86,189.81,2.6392]
[1735738194018,2.6389,189.85,189.8,7.69058259]
[1735738195619,2.6389,189.85,189.8,2.6394]
[1735738196021,2.6389,189.84,189.8,2.6394]
[1735738196511,2.6389,189.84,189.79,10.33018259]
[1735738196717,7.69058259,189.84,189.76,3.0]
[1735738197019,7.69058259,189.84,189.77,7.69058259]
[1735738197220,7.69058259,189.84,189.78,2.6397]
[1735738198522,2.639,189.83,189.78,2.6397]
[1735738199523,7.69058259,189.82,189.75,4.6735]
[1735738199826,7.69058259,189.8,189.74,42.34110692]
[1735738200320,7.69058259,189.8,189.73,3.0]
[1735738200518,2.6397,189.79,189.73,5.6404]
[1735738200915,7.69058259,189.78,189.73,2.6404]
[1735738201425,2.6399,189.77,189.72,10.33108259]
[1735738201626,2.6399,189.77,189.72,2.6405]
[1735738201921,7.7895,189.83,189.74,7.69058259]
[1735738202126,7.69058259,189.81,189.76,2.64]
[1735738202323,7.69058259,189.81,189.74,7.69058259]
[1735738203025,7.7895,189.83,189.74,7.69058259]
[1735738203225,7.69058259,189.81,189.77,2.6398]
[1735738204326,10.32988259,189.81,189.76,2.64]
[1735738205029,10.32988259,189.81,189.77,2.6398]
[1735738206128,7.69058259,189.82,189.78,2.6397]
[1735738206329,7.69058259,189.82,189.75,7.69058259]
[1735738206829,10.32988259,189.82,189.77,2.6398]
[1735738207430,7.69058259,189.85,189.77,7.69058259]
[1735738208027,2.639,189.84,189.79,2.6395]
[1735738208829,10.32938259,189.85,189.8,2.6394]
[1735738209530,10.32938259,189.85,189.79,7.69058259]
[1735738209730,10.32938259,189.85,189.81,2.6393]
[1735738210329,7.69058259,189.85,189.81,2.6393]
[1735738210529,4.623,189.91,189.81,7.69058259]
[1735738210728,4.623,189.91,189.8,3.0]
[1735738210729,7.69058259,189.9,189.83,7.69058259]
[1735738210928,10.32868259,189.9,189.83,7.69058259]
[1735738211126,10.32868259,189.9,189.85,2.6386]
[1735738211931,10.32868259,189.9,189.83,7.69058259]
[1735738212931,10.32868259,189.9,189.85,7.69058259]
[1735738213522,10.32868259,189.9,189.86,2.6386]
[1735738214434,10.32868259,189.9,189.85,7.69058259]
[1735738215325,10.32868259,189.9,189.84,2.6387]
[1735738215524,10.32868259,189.9,189.85,2.6387]
[1735738219036,7.69058259,189.9,189.83,7.69058259]
[1735738219236,2.6382,189.89,189.83,10.32948259]
[1735738219535,2.6382,189.89,189.83,7.69058259]
[1735738220236,7.69058259,189.9,189.83,7.69058259]
[1735738220735,7.69058259,189.9,189.83,10.69058259]
[1735738220937,10.32868259,189.9,189.85,2.6387]
[1735738222635,7.69058259,189.92,189.85,7.69058259]
[1735738222836,7.69058259,189.94,189.87,7.69058259]
[1735738223634,10.32808259,189.94,189.89,2.6381]
[1735738223837,57.78622438,189.98,189.91,7.69058259]
[1735738224037,57.78622438,189.98,189.93,7.69058259]
[1735738224440,7.69058259,190.0,189.93,7.69058259]
[1735738225538,2.637,189.98,189.94,2.6375]
[1735738225934,7.69058259,190.0,189.94,2.6375]
[1735738226431,2.6369,189.99,189.94,2.6375]
[1735738228638,2.6366,190.01,189.94,2.6375]
[1735738228840,7.69058259,190.0,189.94,2.6375]
[1735738229540,10.32738259,190.0,189.95,2.6373]
[1735738230144,2.6368,189.99,189.95,2.6373]
[1735738232048,7.69058259,190.0,189.95,10.32788259]
[1735738232241,2.6365,190.02,189.97,7.69058259]
[1735738232444,2.6365,190.02,189.97,10.69058259]
[1735738232643,7.69058259,190.03,189.97,10.69058259]
[1735738233246,7.69058259,190.05,189.97,10.69058259]
[1735738233446,7.69058259,190.05,189.99,7.69058259]
[1735738233748,2.636,190.06,190.01,2.6365]
[1735738233948,7.69058259,190.07,189.99,7.69058259]
[1735738235039,2.6361,190.05,189.99,10.32728259]
[1735738235644,2.6361,190.04,189.99,10.32728259]
[1735738235841,2.6361,190.04,189.99,7.69058259]
[1735738236045,7.69058259,190.05,189.98,7.69058259]
[1735738236650,2.6365,190.02,189.98,7.69058259]
[1735738236851,2.6365,190.02,189.98,10.69058259]
[1735738237756,2.6365,190.02,189.98,3.0]
[1735738237946,7.69058259,190.01,189.93,4.8596]
[1735738238150,7.69058259,190.01,189.95,3.0]
[1735738239558,2.6368,189.99,189.95,3.0]
[1735738241060,7.69058259,190.01,189.95,5.6374]
[1735738241249,10.32728259,190.01,189.95,5.6374]
[1735738241649,7.69058259,190.01,189.95,5.6374]
[1735738242454,2.6367,190.0,189.95,5.6374]
[1735738244159,2.6362,190.04,189.99,2.6368]
[1735738244955,2.6362,190.03,189.99,2.6368]
[1735738245353,10.32678259,190.03,189.98,10.32748259]
[1735738246753,2.636,190.05,190.0,7.69058259]
[1735738246959,7.69058259,190.07,190.0,10.69058259]
[1735738247160,7.69058259,190.08,190.0,10.69058259]
[1735738248364,2.6358,190.07,190.02,2.6364]
[1735738248863,2.6359,190.06,190.02,2.6364]
[1735738250654,2.6357,190.07,190.02,2.6364]
[1735738251361,7.69058259,190.08,190.02,10.32688259]
[1735738251667,7.69058259,190.08,190.02,7.69058259]
[1735738251961,10.32618259,190.08,190.04,2.6361]
[1735738254365,2.6357,190.07,190.02,10.32688259]
[1735738256463,10.32618259,190.08,190.04,2.636]
[1735738256668,2.6356,190.08,190.04,2.636]
[1735738257367,2.6354,190.09,190.05,2.6359]
[1735738258270,7.69058259,190.11,190.05,2.6359]
[1735738258469,10.32568259,190.11,190.04,7.69058259]
[1735738258665,2.6351,190.11,190.05,2.98]
[1735738259173,2.6351,190.11,190.06,7.69058259]
[1735738259568,4.5582,190.12,190.06,7.69058259]
[1735738259771,2.635,190.13,190.08,7.69058259]
[1735738260573,2.635,190.12,190.08,7.69058259]
[1735738261974,7.69058259,190.14,190.08,7.69058259]
[1735738262171,10.32588259,190.1,190.06,5.6158]
[1735738262370,10.32588259,190.1,190.06,2.98]
[1735738262569,2.6354,190.09,190.06,2.98]
[1735738266275,7.69058259,190.12,190.06,2.98]
[1735738266471,2.6351,190.12,190.07,2.6356]
[1735738267777,2.6351,190.12,190.07,10.32618259]
[1735738268377,7.69058259,190.14,190.07,10.32618259]
[1735738268577,2.6352,190.11,190.07,10.32618259]
[1735738269979,7.69058259,190.1,190.02,3.223]
[1735738270179,7.69058259,190.1,190.03,2.98]
[1735738270681,2.6357,190.07,190.03,5.6162]
[1735738273278,2.6357,190.07,190.03,2.98]
[1735738273474,2.6357,190.07,190.02,7.69058259]
[1735738273475,2.6352,190.11,190.02,13.30698259]
[1735738273680,7.69058259,190.07,190.02,13.30698259]
[1735738274379,10.32638259,190.07,190.02,13.30698259]
[1735738276086,10.32638259,190.07,190.02,10.32698259]
[1735738276484,7.69058259,190.07,190.0,2.6365]
[1735738276783,7.69058259,190.05,190.0,5.6165]
[1735738277386,7.69058259,190.05,189.93,1.6331]
[1735738277580,7.69058259,190.05,189.97,7.69058259]
[1735738277784,4.7792,190.08,189.97,7.69058259]
[1735738277785,7.69058259,190.03,189.97,7.69058259]
[1735738279085,2.6366,190.01,189.97,7.69058259]
[1735738279884,2.6366,190.01,189.97,10.32758259]
[1735738280187,2.6364,190.02,189.97,10.32758259]
[1735738280790,7.69058259,190.03,189.97,7.69058259]
[1735738281084,2.6368,190.0,189.97,7.69058259]
[1735738281689,7.69058259,190.01,189.93,1.6331]
[1735738281885,7.69058259,190.01,189.94,2.6375]
[1735738282086,7.69058259,190.01,189.94,10.32808259]
[1735738282685,2.6368,189.99,189.95,2.6373]
[1735738284490,2.6368,189.99,189.94,10.32808259]
[1735738284993,2.6368,189.99,189.94,7.69058259]
[1735738285191,2.6368,189.99,189.95,2.6373]
[1735738291296,2.6371,189.97,189.94,7.69058259]
[1735738293198,7.69058259,190.01,189.94,7.69058259]
[1735738293499,2.637,189.98,189.94,10.32808259]
[1735738293896,7.69058259,190.01,189.94,7.69058259]
[1735738294096,2.6371,189.97,189.94,7.69058259]
[1735738294798,7.69058259,190.03,189.96,7.69058259]
[1735738294995,2.98,190.06,189.98,7.69058259]
[1735738295197,10.67058259,190.06,189.98,7.69058259]
[1735738295392,2.6364,190.03,189.99,2.6367]
[1735738295597,10.67058259,190.06,189.98,7.69058259]
[1735738295794,10.67058259,190.06,189.98,10.32748259]
[1735738295995,2.6364,190.03,189.98,10.32748259]
[1735738296801,2.6364,190.02,189.98,10.32748259]
[1735738297299,2.6368,189.99,189.95,2.6372]
[1735738297500,7.69058259,190.02,189.96,7.69058259]
[1735738298401,2.6367,190.0,189.96,10.32768259]
[1735738299503,2.6364,190.02,189.97,2.6369]
[1735738300100,2.6366,190.01,189.97,2.6369]
[1735738300597,7.69058259,190.04,189.96,2.6372]
[1735738300906,2.6367,190.0,189.96,10.32778259]
[1735738301601,2.98,190.06,189.94,2.6374]
[1735738301602,7.69058259,190.02,189.94,2.6374]
[1735738301801,7.69058259,190.02,189.94,10.32798259]
[1735738302202,2.6369,189.99,189.95,2.6373]
[1735738302397,2.6369,189.99,189.96,7.69058259]
[1735738302594,7.69058259,190.02,189.96,7.69058259]
[1735738302901,2.98,190.06,189.96,7.69058259]
[1735738303101,7.69058259,190.04,189.98,7.69058259]
[1735738303303,2.6366,190.01,189.95,2.6373]
[1735738303493,2.98,190.06,189.92,4.4752]
[1735738303494,7.69058259,190.02,189.92,4.4752]
[1735738303693,7.69058259,190.02,189.96,7.69058259]
[1735738304102,2.6367,190.0,189.97,2.6371]
[1735738305404,2.6366,190.01,189.97,2.6371]
[1735738305795,2.98,190.06,189.92,4.4752]
[1735738305796,7.69058259,190.04,189.99,2.6368]
[1735738305996,7.69058259,190.06,190.0,7.69058259]
[1735738306200,15.44978259,190.08,190.0,7.69058259]
[1735738306608,12.46978259,190.08,190.0,7.69058259]
[1735738308312,7.69058259,190.06,189.98,7.69058259]
[1735738308709,7.69058259,190.04,189.98,7.69058259]
[1735738308911,2.6368,190.0,189.97,2.98]
[1735738309113,2.6368,190.0,189.96,10.32778259]
[1735738310516,7.69058259,190.02,189.94,7.69058259]
[1735738310912,7.69058259,190.0,189.91,2.98]
[1735738311108,7.69058259,190.0,189.92,7.69058259]
[1735738311309,7.69058259,190.0,189.94,7.69058259]
[1735738312614,2.6369,189.99,189.94,10.32798259]
[1735738313817,2.6367,190.0,189.95,2.6372]
[1735738314018,2.98,190.01,189.96,7.69058259]
[1735738314218,7.69058259,190.02,189.96,7.69058259]
[1735738315317,2.6367,190.0,189.96,10.32768259]
[1735738316725,2.6367,190.0,189.96,7.69058259]
[1735738316915,7.69058259,190.02,189.94,7.69058259]
[1735738317427,7.69058259,190.0,189.93,2.6375]
[1735738317624,7.69058259,190.0,189.93,10.32808259]
[1735738318230,2.637,189.98,189.93,10.32808259]
[1735738318522,7.69058259,190.0,189.95,7.69058259]
[1735738318732,7.69058259,190.02,189.95,7.69058259]
[1735738319124,2.6371,189.98,189.95,7.69058259]
[1735738320632,2.6371,189.97,189.95,7.69058259]
[1735738321220,2.6365,190.01,189.95,7.69058259]
[1735738321424,70.28924075,190.03,189.98,7.69058259]
[1735738322225,2.6363,190.03,189.98,10.32738259]
[1735738322530,10.67058259,190.05,189.98,10.32738259]
[1735738323133,10.67058259,190.05,189.98,7.69058259]
[1735738323933,17.35299712,190.05,189.98,7.69058259]
[1735738324231,8.58438222,190.04,189.98,7.69058259]
[1735738324634,10.67058259,190.05,189.98,7.69058259]
[1735738324834,2.6363,190.03,189.98,7.69058259]
[1735738325130,8.58438222,190.04,189.98,7.69058259]
[1735738325535,2.6366,190.01,189.98,7.69058259]
[1735738326031,8.58438222,190.04,189.98,7.69058259]
[1735738326234,7.69058259,190.03,189.96,7.69058259]
[1735738327932,2.6369,189.99,189.96,7.69058259]